[Event "Titled Tuesday Blitz May 4 2021"]
[White "Sztokbant, Bernardo Vainzoff"]
[Black "Gritsenko, Nikolai"]
[WhiteFideId "2115956"]
[BlackFideId "14112493"]
[WhiteElo "2264"]
[BlackElo "2389"]
[Result "1-0"]
[Round "05"]
[TimeControl "180+1"]
[Date "2021.05.04"]
[WhiteClock "0:00:06"]
[BlackClock "0:00:09"]

1. e4 {[%clk 0:03:00]}  e6 {[%clk 0:02:59]} 2. d4 {[%clk 0:03:00]}  Ne7 {[%clk 0:02:59]} 3. Nf3 {[%clk 0:02:59]}  d5 {[%clk 0:02:59]} 4. Nc3 {[%clk 0:02:59]}  Nbc6 {[%clk 0:02:58]} 5. Bd3 {[%clk 0:02:56]}  Nb4 {[%clk 0:02:57]} 6. Be2 {[%clk 0:02:55]}  dxe4 {[%clk 0:02:57]} 7. Nxe4 {[%clk 0:02:56]}  b6 {[%clk 0:02:57]} 8. a3 {[%clk 0:02:52]}  Nbc6 {[%clk 0:02:56]} 9. O-O {[%clk 0:02:51]}  Bb7 {[%clk 0:02:56]} 10. Re1 {[%clk 0:02:42]}  Ng6 {[%clk 0:02:49]} 11. Bg5 {[%clk 0:02:36]}  Be7 {[%clk 0:02:48]} 12. Bxe7 {[%clk 0:02:26]}  Ncxe7 {[%clk 0:02:46]} 13. Bb5+ {[%clk 0:02:23]}  c6 {[%clk 0:02:39]} 14. Bf1 {[%clk 0:02:21]}  O-O {[%clk 0:02:37]} 15. g3 {[%clk 0:02:13]}  Qc7 {[%clk 0:02:32]} 16. Bg2 {[%clk 0:02:08]}  Rad8 {[%clk 0:02:15]} 17. Qe2 {[%clk 0:02:06]}  Rd7 {[%clk 0:02:04]} 18. h4 {[%clk 0:02:04]}  Rd5 {[%clk 0:01:29]} 19. c4 {[%clk 0:01:59]}  Rf5 {[%clk 0:01:29]} 20. Bh3 {[%clk 0:01:38]}  h6 {[%clk 0:01:26]} 21. Bxf5 {[%clk 0:01:33]}  Nxf5 {[%clk 0:01:26]} 22. c5 {[%clk 0:01:24]}  Rd8 {[%clk 0:01:22]} 23. Rad1 {[%clk 0:01:23]}  Rd5 {[%clk 0:01:13]} 24. Nc3 {[%clk 0:01:11]}  Rd8 {[%clk 0:00:53]} 25. Qe4 {[%clk 0:01:02]}  Ba6 {[%clk 0:00:43]} 26. h5 {[%clk 0:00:55]}  Nxg3 {[%clk 0:00:23]} 27. Qg4 {[%clk 0:00:37]}  Nxh5 {[%clk 0:00:22]} 28. Qxh5 {[%clk 0:00:34]}  Qf4 {[%clk 0:00:22]} 29. Re4 {[%clk 0:00:30]}  Qf6 {[%clk 0:00:20]} 30. cxb6 {[%clk 0:00:23]}  axb6 {[%clk 0:00:20]} 31. Qg4 {[%clk 0:00:20]}  Bc4 {[%clk 0:00:20]} 32. Ne5 {[%clk 0:00:16]}  Bd5 {[%clk 0:00:15]} 33. Nxd5 {[%clk 0:00:14]}  Rxd5 {[%clk 0:00:14]} 34. Nxg6 {[%clk 0:00:13]}  Rg5 {[%clk 0:00:14]} 35. Ne5 {[%clk 0:00:11]}  Rxg4+ {[%clk 0:00:13]} 36. Rxg4 {[%clk 0:00:11]}  Qf5 {[%clk 0:00:13]} 37. Rg3 {[%clk 0:00:10]}  h5 {[%clk 0:00:12]} 38. Nxc6 {[%clk 0:00:10]}  Kh7 {[%clk 0:00:10]} 39. Ne5 {[%clk 0:00:10]}  h4 {[%clk 0:00:09]} 40. Rf3 {[%clk 0:00:09]}  Qg5+ {[%clk 0:00:09]} 41. Kf1 {[%clk 0:00:09]}  f6 {[%clk 0:00:09]} 42. Nd3 {[%clk 0:00:09]}  Qg4 {[%clk 0:00:09]} 43. Ke2 {[%clk 0:00:08]}  e5 {[%clk 0:00:10]} 44. dxe5 {[%clk 0:00:08]}  fxe5 {[%clk 0:00:10]} 45. Nxe5 {[%clk 0:00:08]}  Qe4+ {[%clk 0:00:10]} 46. Re3 {[%clk 0:00:09]}  Qc2+ {[%clk 0:00:10]} 47. Rd2 {[%clk 0:00:09]}  Qf5 {[%clk 0:00:10]} 48. a4 {[%clk 0:00:06]}  h3 {[%clk 0:00:10]} 49. Nf3 {[%clk 0:00:06]}  Qh5 {[%clk 0:00:09]} 50. Rd4 {[%clk 0:00:05]}  h2 {[%clk 0:00:08]} 51. Rh4 {[%clk 0:00:05]}  Qxh4 {[%clk 0:00:09]} 52. Nxh4 {[%clk 0:00:06]}  h1=Q {[%clk 0:00:09]} 53. Nf3 {[%clk 0:00:06]}  Qb1 {[%clk 0:00:09]} 54. b3 {[%clk 0:00:04]}  Qb2+ {[%clk 0:00:09]} 55. Nd2 {[%clk 0:00:05]}  Qf6 {[%clk 0:00:09]} 56. Ne4 {[%clk 0:00:03]}  Qc6 {[%clk 0:00:09]} 57. Nd2 {[%clk 0:00:04]}  b5 {[%clk 0:00:09]} 58. Rh3+ {[%clk 0:00:04]}  Kg8 {[%clk 0:00:09]} 59. axb5 {[%clk 0:00:02]}  Qxb5+ {[%clk 0:00:08]} 60. Rd3 {[%clk 0:00:03]}  Qe5+ {[%clk 0:00:08]} 61. Re3 {[%clk 0:00:03]}  Qb5+ {[%clk 0:00:08]} 62. Nc4 {[%clk 0:00:03]}  Kh7 {[%clk 0:00:08]} 63. Rh3+ {[%clk 0:00:03]}  Kg8 {[%clk 0:00:08]} 64. Re3 {[%clk 0:00:04]}  Qb6 {[%clk 0:00:07]} 65. Nxb6 {[%clk 0:00:03]}  Kh7 {[%clk 0:00:07]} 66. Nc4 {[%clk 0:00:04]}  Kg6 {[%clk 0:00:07]} 67. b4 {[%clk 0:00:05]}  Kf6 {[%clk 0:00:08]} 68. Rg3 {[%clk 0:00:06]}  Kf7 {[%clk 0:00:08]} 69. b5 {[%clk 0:00:06]}  g5 {[%clk 0:00:09]} 70. Rxg5 {[%clk 0:00:06]} 1-0


[Site "https://www.chess.com"]

[Event "Titled Tuesday Blitz May 4 2021"]
[White "Tari, Aryan"]
[Black "Bartel, Michal"]
[WhiteFideId "1510045"]
[BlackFideId "1119257"]
[WhiteElo "2656"]
[BlackElo "2271"]
[Result "0-1"]
[Round "05"]
[TimeControl "180+1"]
[Date "2021.05.04"]
[WhiteClock "0:00:03"]
[BlackClock "0:00:05"]

1. d4 {[%clk 0:03:00]}  Nf6 {[%clk 0:02:55]} 2. Nf3 {[%clk 0:03:00]}  c5 {[%clk 0:02:54]} 3. d5 {[%clk 0:02:59]}  e6 {[%clk 0:02:51]} 4. c4 {[%clk 0:02:59]}  exd5 {[%clk 0:02:51]} 5. cxd5 {[%clk 0:02:58]}  d6 {[%clk 0:02:52]} 6. Nc3 {[%clk 0:02:59]}  g6 {[%clk 0:02:52]} 7. Bf4 {[%clk 0:02:59]}  a6 {[%clk 0:02:52]} 8. a4 {[%clk 0:02:57]}  Nh5 {[%clk 0:02:52]} 9. Bg5 {[%clk 0:02:54]}  f6 {[%clk 0:02:52]} 10. Bh4 {[%clk 0:02:53]}  Bg7 {[%clk 0:02:51]} 11. e3 {[%clk 0:02:52]}  O-O {[%clk 0:02:50]} 12. Nd2 {[%clk 0:02:44]}  Nd7 {[%clk 0:02:21]} 13. Be2 {[%clk 0:02:31]}  g5 {[%clk 0:02:05]} 14. Bxh5 {[%clk 0:02:22]}  gxh4 {[%clk 0:02:05]} 15. h3 {[%clk 0:01:54]}  Ne5 {[%clk 0:01:59]} 16. O-O {[%clk 0:01:54]}  Bf5 {[%clk 0:01:54]} 17. e4 {[%clk 0:01:48]}  Bg6 {[%clk 0:01:54]} 18. f4 {[%clk 0:01:44]}  Nd3 {[%clk 0:01:49]} 19. Bxg6 {[%clk 0:01:28]}  hxg6 {[%clk 0:01:49]} 20. Nc4 {[%clk 0:01:27]}  Nb4 {[%clk 0:01:48]} 21. Qg4 {[%clk 0:01:25]}  f5 {[%clk 0:01:32]} 22. Qxg6 {[%clk 0:01:23]}  fxe4 {[%clk 0:01:21]} 23. Nxe4 {[%clk 0:01:10]}  Qe8 {[%clk 0:01:22]} 24. Qxe8 {[%clk 0:01:05]}  Raxe8 {[%clk 0:01:23]} 25. Ncxd6 {[%clk 0:01:04]}  Rd8 {[%clk 0:01:19]} 26. Nxb7 {[%clk 0:00:44]}  Rxd5 {[%clk 0:01:15]} 27. Rad1 {[%clk 0:00:42]}  Rxd1 {[%clk 0:01:13]} 28. Rxd1 {[%clk 0:00:43]}  Rxf4 {[%clk 0:01:13]} 29. Nbxc5 {[%clk 0:00:36]}  Bxb2 {[%clk 0:01:11]} 30. Rd7 {[%clk 0:00:29]}  Nc2 {[%clk 0:00:54]} 31. Rd2 {[%clk 0:00:22]}  Bd4+ {[%clk 0:00:43]} 32. Kh2 {[%clk 0:00:22]}  Be5 {[%clk 0:00:34]} 33. Nd3 {[%clk 0:00:11]}  Rxe4+ {[%clk 0:00:28]} 34. Nxe5 {[%clk 0:00:11]}  Ne3 {[%clk 0:00:24]} 35. Rd8+ {[%clk 0:00:11]}  Kg7 {[%clk 0:00:24]} 36. Nf3 {[%clk 0:00:08]}  Rxa4 {[%clk 0:00:22]} 37. Re8 {[%clk 0:00:07]}  Nf1+ {[%clk 0:00:22]} 38. Kg1 {[%clk 0:00:07]}  Ng3 {[%clk 0:00:22]} 39. Kh2 {[%clk 0:00:06]}  Nf1+ {[%clk 0:00:21]} 40. Kg1 {[%clk 0:00:07]}  Ng3 {[%clk 0:00:22]} 41. Re1 {[%clk 0:00:05]}  Nf5 {[%clk 0:00:18]} 42. Kh2 {[%clk 0:00:05]}  Kf6 {[%clk 0:00:17]} 43. Rf1 {[%clk 0:00:05]}  Kg6 {[%clk 0:00:17]} 44. Ne5+ {[%clk 0:00:05]}  Kg5 {[%clk 0:00:17]} 45. Nf7+ {[%clk 0:00:06]}  Kg6 {[%clk 0:00:17]} 46. Ne5+ {[%clk 0:00:06]}  Kg5 {[%clk 0:00:18]} 47. Rc1 {[%clk 0:00:06]}  Ra5 {[%clk 0:00:16]} 48. Nf3+ {[%clk 0:00:07]}  Kf4 {[%clk 0:00:15]} 49. Rc4+ {[%clk 0:00:07]}  Ke3 {[%clk 0:00:14]} 50. Nxh4 {[%clk 0:00:08]}  Nd4 {[%clk 0:00:13]} 51. Ng6 {[%clk 0:00:06]}  Ra2 {[%clk 0:00:12]} 52. Ne5 {[%clk 0:00:06]}  a5 {[%clk 0:00:11]} 53. Ng4+ {[%clk 0:00:07]}  Kd3 {[%clk 0:00:11]} 54. Ne5+ {[%clk 0:00:06]}  Ke3 {[%clk 0:00:12]} 55. Rc8 {[%clk 0:00:05]}  a4 {[%clk 0:00:12]} 56. Ra8 {[%clk 0:00:05]}  Ke4 {[%clk 0:00:10]} 57. Nc4 {[%clk 0:00:05]}  Nf3+ {[%clk 0:00:10]} 58. Kg3 {[%clk 0:00:04]}  Nd4 {[%clk 0:00:11]} 59. Nb6 {[%clk 0:00:05]}  a3 {[%clk 0:00:10]} 60. Nc4 {[%clk 0:00:05]}  Nb5 {[%clk 0:00:10]} 61. Ra5 {[%clk 0:00:06]}  Kd4 {[%clk 0:00:07]} 62. Nb6 {[%clk 0:00:02]}  Kc5 {[%clk 0:00:07]} 63. Nd7+ {[%clk 0:00:02]}  Kb4 {[%clk 0:00:07]} 64. Ra8 {[%clk 0:00:03]}  Rd2 {[%clk 0:00:07]} 65. Ne5 {[%clk 0:00:03]}  a2 {[%clk 0:00:06]} 66. Rb8 {[%clk 0:00:03]}  a1=Q {[%clk 0:00:06]} 67. Nc6+ {[%clk 0:00:03]}  Kc5 {[%clk 0:00:05]} 68. Rc8 {[%clk 0:00:03]}  Kb6 {[%clk 0:00:05]} 69. Ne7 {[%clk 0:00:02]}  Qg7+ {[%clk 0:00:05]} 70. Kh2 {[%clk 0:00:03]}  Qxe7 {[%clk 0:00:05]} 0-1


[Site "https://www.chess.com"]

[Event "Titled Tuesday Blitz May 4 2021"]
[White "Tejedor Fuente, Enrique"]
[Black "Christensen, Thomas"]
[WhiteFideId "2299100"]
[BlackFideId "1403532"]
[WhiteElo "2535"]
[BlackElo "2295"]
[Result "1/2-1/2"]
[Round "05"]
[TimeControl "180+1"]
[Date "2021.05.04"]
[WhiteClock "0:00:02"]
[BlackClock "0:00:07"]

1. e4 {[%clk 0:03:00]}  Nc6 {[%clk 0:02:58]} 2. d4 {[%clk 0:02:57]}  e5 {[%clk 0:02:58]} 3. dxe5 {[%clk 0:02:54]}  Nxe5 {[%clk 0:02:58]} 4. Bf4 {[%clk 0:02:51]}  Ng6 {[%clk 0:02:57]} 5. Bg3 {[%clk 0:02:45]}  Bc5 {[%clk 0:02:56]} 6. Nf3 {[%clk 0:02:38]}  d6 {[%clk 0:02:56]} 7. Nc3 {[%clk 0:02:36]}  N8e7 {[%clk 0:02:56]} 8. Na4 {[%clk 0:02:25]}  Bb6 {[%clk 0:02:55]} 9. Nxb6 {[%clk 0:02:01]}  axb6 {[%clk 0:02:56]} 10. Bd3 {[%clk 0:02:00]}  O-O {[%clk 0:02:55]} 11. O-O {[%clk 0:01:55]}  f5 {[%clk 0:02:52]} 12. exf5 {[%clk 0:01:37]}  Bxf5 {[%clk 0:02:50]} 13. Re1 {[%clk 0:01:34]}  Qd7 {[%clk 0:02:48]} 14. a3 {[%clk 0:01:28]}  Rae8 {[%clk 0:02:29]} 15. Nd4 {[%clk 0:01:04]}  Bxd3 {[%clk 0:02:27]} 16. Qxd3 {[%clk 0:01:05]}  Nc6 {[%clk 0:02:20]} 17. Qb3+ {[%clk 0:00:59]}  Kh8 {[%clk 0:02:18]} 18. Nxc6 {[%clk 0:00:53]}  bxc6 {[%clk 0:02:15]} 19. h3 {[%clk 0:00:52]}  Qf5 {[%clk 0:02:04]} 20. Qd3 {[%clk 0:00:43]}  Qxd3 {[%clk 0:01:50]} 21. cxd3 {[%clk 0:00:44]}  Kg8 {[%clk 0:01:48]} 22. Kf1 {[%clk 0:00:43]}  Kf7 {[%clk 0:01:48]} 23. Re2 {[%clk 0:00:39]}  Rxe2 {[%clk 0:01:47]} 24. Kxe2 {[%clk 0:00:40]}  Ke6 {[%clk 0:01:41]} 25. Kd2 {[%clk 0:00:34]}  Kd5 {[%clk 0:01:40]} 26. Re1 {[%clk 0:00:32]}  b5 {[%clk 0:01:26]} 27. f3 {[%clk 0:00:27]}  Rf7 {[%clk 0:01:19]} 28. Re4 {[%clk 0:00:27]}  c5 {[%clk 0:01:14]} 29. h4 {[%clk 0:00:24]}  Ne7 {[%clk 0:01:10]} 30. a4 {[%clk 0:00:19]}  bxa4 {[%clk 0:01:05]} 31. Rxa4 {[%clk 0:00:20]}  Nf5 {[%clk 0:01:04]} 32. Bf2 {[%clk 0:00:18]}  Rf8 {[%clk 0:00:57]} 33. b4 {[%clk 0:00:11]}  cxb4 {[%clk 0:00:34]} 34. Rxb4 {[%clk 0:00:12]}  Ra8 {[%clk 0:00:31]} 35. Rb5+ {[%clk 0:00:11]}  c5 {[%clk 0:00:31]} 36. Rb2 {[%clk 0:00:11]}  Ra3 {[%clk 0:00:21]} 37. Rc2 {[%clk 0:00:09]}  Nd4 {[%clk 0:00:17]} 38. Bxd4 {[%clk 0:00:09]}  Kxd4 {[%clk 0:00:17]} 39. Rc4+ {[%clk 0:00:09]}  Kd5 {[%clk 0:00:16]} 40. Rg4 {[%clk 0:00:10]}  g6 {[%clk 0:00:16]} 41. h5 {[%clk 0:00:10]}  Ra2+ {[%clk 0:00:13]} 42. Ke3 {[%clk 0:00:10]}  gxh5 {[%clk 0:00:10]} 43. Rg5+ {[%clk 0:00:08]}  Ke6 {[%clk 0:00:08]} 44. g3 {[%clk 0:00:02]}  Rg2 {[%clk 0:00:07]} 45. Rxh5 {[%clk 0:00:01]}  Rxg3 {[%clk 0:00:08]} 46. Rh6+ {[%clk 0:00:02]}  Kd5 {[%clk 0:00:07]} 47. Rh5+ {[%clk 0:00:02]}  Ke6 {[%clk 0:00:07]} 48. Rh6+ {[%clk 0:00:03]}  Kd5 {[%clk 0:00:07]} 49. Rxh7 {[%clk 0:00:03]}  Rg5 {[%clk 0:00:06]} 50. Kf4 {[%clk 0:00:03]}  Rg6 {[%clk 0:00:05]} 51. Rh1 {[%clk 0:00:01]}  Rf6+ {[%clk 0:00:05]} 52. Ke3 {[%clk 0:00:01]}  Re6+ {[%clk 0:00:05]} 53. Kd2 {[%clk 0:00:02]}  Rf6 {[%clk 0:00:04]} 54. Rh5+ {[%clk 0:00:02]}  Kd4 {[%clk 0:00:03]} 55. Rh4+ {[%clk 0:00:03]}  Kd5 {[%clk 0:00:04]} 56. Ke3 {[%clk 0:00:03]}  Re6+ {[%clk 0:00:03]} 57. Kd2 {[%clk 0:00:04]}  Rg6 {[%clk 0:00:04]} 58. Rh5+ {[%clk 0:00:03]}  Kc6 {[%clk 0:00:04]} 59. Ke3 {[%clk 0:00:03]}  Re6+ {[%clk 0:00:05]} 60. Kf2 {[%clk 0:00:04]}  Rg6 {[%clk 0:00:05]} 61. f4 {[%clk 0:00:04]}  Rf6 {[%clk 0:00:04]} 62. Ke3 {[%clk 0:00:04]}  d5 {[%clk 0:00:05]} 63. Re5 {[%clk 0:00:03]}  Kd6 {[%clk 0:00:05]} 64. Re8 {[%clk 0:00:03]}  Rh6 {[%clk 0:00:05]} 65. Kf3 {[%clk 0:00:03]}  Rh3+ {[%clk 0:00:05]} 66. Ke2 {[%clk 0:00:03]}  d4 {[%clk 0:00:04]} 67. Rd8+ {[%clk 0:00:03]}  Ke6 {[%clk 0:00:04]} 68. Rc8 {[%clk 0:00:03]}  Kd5 {[%clk 0:00:04]} 69. Re8 {[%clk 0:00:03]}  Rh2+ {[%clk 0:00:04]} 70. Ke1 {[%clk 0:00:03]}  Kd6 {[%clk 0:00:01]} 71. Re5 {[%clk 0:00:03]}  Kc6 {[%clk 0:00:01]} 72. Re6+ {[%clk 0:00:03]}  Kd5 {[%clk 0:00:02]} 73. Re5+ {[%clk 0:00:03]}  Kd6 {[%clk 0:00:02]} 74. Rg5 {[%clk 0:00:04]}  Kc6 {[%clk 0:00:02]} 75. f5 {[%clk 0:00:04]}  Rh4 {[%clk 0:00:02]} 76. Rg6+ {[%clk 0:00:03]}  Kd5 {[%clk 0:00:02]} 77. f6 {[%clk 0:00:03]}  Rf4 {[%clk 0:00:03]} 78. Ke2 {[%clk 0:00:02]}  Rf5 {[%clk 0:00:03]} 79. Kd2 {[%clk 0:00:01]}  Rf2+ {[%clk 0:00:02]} 80. Ke1 {[%clk 0:00:01]}  Rf5 {[%clk 0:00:03]} 81. Ke2 {[%clk 0:00:01]}  Re5+ {[%clk 0:00:03]} 82. Kd2 {[%clk 0:00:01]}  Rf5 {[%clk 0:00:04]} 83. Rh6 {[%clk 0:00:01]}  Ke5 {[%clk 0:00:04]} 84. f7 {[%clk 0:00:01]}  Rxf7 {[%clk 0:00:04]} 85. Rh5+ {[%clk 0:00:02]}  Kd6 {[%clk 0:00:04]} 86. Rh2 {[%clk 0:00:02]}  Rf5 {[%clk 0:00:04]} 87. Rh6+ {[%clk 0:00:02]}  Kd5 {[%clk 0:00:04]} 88. Rh2 {[%clk 0:00:03]}  Rg5 {[%clk 0:00:05]} 89. Re2 {[%clk 0:00:03]}  c4 {[%clk 0:00:05]} 90. dxc4+ {[%clk 0:00:03]}  Kxc4 {[%clk 0:00:06]} 91. Rh2 {[%clk 0:00:04]}  Rg3 {[%clk 0:00:07]} 92. Rf2 {[%clk 0:00:03]}  Ra3 {[%clk 0:00:07]} 93. Kc1 {[%clk 0:00:02]}  d3 {[%clk 0:00:06]} 94. Rf8 {[%clk 0:00:02]}  Ra1+ {[%clk 0:00:06]} 95. Kd2 {[%clk 0:00:02]}  Ra2+ {[%clk 0:00:06]} 96. Kd1 {[%clk 0:00:02]}  Ra5 {[%clk 0:00:05]} 97. Rc8+ {[%clk 0:00:02]}  Rc5 {[%clk 0:00:05]} 98. Rd8 {[%clk 0:00:03]}  Rd5 {[%clk 0:00:05]} 99. Rc8+ {[%clk 0:00:03]}  Kd4 {[%clk 0:00:05]} 100. Rh8 {[%clk 0:00:04]}  Re5 {[%clk 0:00:06]} 101. Rd8+ {[%clk 0:00:04]}  Ke3 {[%clk 0:00:06]} 102. Rh8 {[%clk 0:00:03]}  Re4 {[%clk 0:00:06]} 103. Rh3+ {[%clk 0:00:03]}  Kd4 {[%clk 0:00:06]} 104. Kd2 {[%clk 0:00:04]}  Kc4 {[%clk 0:00:06]} 105. Rxd3 {[%clk 0:00:02]}  Rd4 {[%clk 0:00:06]} 106. Rxd4+ {[%clk 0:00:02]}  Kxd4 {[%clk 0:00:07]} 1/2-1/2


[Site "https://www.chess.com"]

[Event "Titled Tuesday Blitz May 4 2021"]
[White "TigrVShlyape"]
[Black "Martirosyan, Haik M."]
[BlackFideId "13306553"]
[WhiteElo "2829"]
[BlackElo "2597"]
[Result "0-1"]
[Round "05"]
[TimeControl "180+1"]
[Date "2021.05.04"]
[WhiteClock "0:00:10"]
[BlackClock "0:00:05"]

1. e4 {[%clk 0:03:00]}  e5 {[%clk 0:02:59]} 2. Nf3 {[%clk 0:03:00]}  Nc6 {[%clk 0:02:59]} 3. Bb5 {[%clk 0:02:59]}  Nf6 {[%clk 0:02:58]} 4. O-O {[%clk 0:02:57]}  Nxe4 {[%clk 0:02:58]} 5. Re1 {[%clk 0:02:49]}  Nd6 {[%clk 0:02:58]} 6. Nxe5 {[%clk 0:02:49]}  Be7 {[%clk 0:02:58]} 7. Bf1 {[%clk 0:02:48]}  Nxe5 {[%clk 0:02:57]} 8. Rxe5 {[%clk 0:02:47]}  O-O {[%clk 0:02:58]} 9. d4 {[%clk 0:02:46]}  Bf6 {[%clk 0:02:57]} 10. Re1 {[%clk 0:02:45]}  Nf5 {[%clk 0:02:54]} 11. c3 {[%clk 0:02:35]}  d5 {[%clk 0:02:53]} 12. Bf4 {[%clk 0:02:33]}  c6 {[%clk 0:02:51]} 13. Nd2 {[%clk 0:02:31]}  Bg5 {[%clk 0:02:44]} 14. Bxg5 {[%clk 0:02:24]}  Qxg5 {[%clk 0:02:44]} 15. Nf3 {[%clk 0:02:22]}  Qf6 {[%clk 0:02:44]} 16. Ne5 {[%clk 0:01:59]}  Nd6 {[%clk 0:02:39]} 17. Bd3 {[%clk 0:01:53]}  Bf5 {[%clk 0:02:33]} 18. Qf3 {[%clk 0:01:48]}  Rad8 {[%clk 0:02:28]} 19. Re3 {[%clk 0:01:41]}  Rfe8 {[%clk 0:02:19]} 20. Rae1 {[%clk 0:01:39]}  Re6 {[%clk 0:02:15]} 21. g4 {[%clk 0:01:00]}  Be4 {[%clk 0:01:56]} 22. Qg3 {[%clk 0:00:38]}  Qe7 {[%clk 0:01:46]} 23. Bf1 {[%clk 0:00:26]}  h5 {[%clk 0:01:23]} 24. h3 {[%clk 0:00:23]}  h4 {[%clk 0:01:09]} 25. Qf4 {[%clk 0:00:21]}  g5 {[%clk 0:01:08]} 26. Qh2 {[%clk 0:00:20]}  Re8 {[%clk 0:01:06]} 27. f3 {[%clk 0:00:17]}  Bh7 {[%clk 0:01:07]} 28. R3e2 {[%clk 0:00:15]}  Kg7 {[%clk 0:00:51]} 29. f4 {[%clk 0:00:14]}  Be4 {[%clk 0:00:31]} 30. f5 {[%clk 0:00:14]}  Rh6 {[%clk 0:00:32]} 31. Nf3 {[%clk 0:00:13]}  Qd8 {[%clk 0:00:26]} 32. Nd2 {[%clk 0:00:13]}  Rhh8 {[%clk 0:00:25]} 33. Bg2 {[%clk 0:00:14]}  Bd3 {[%clk 0:00:18]} 34. Rxe8 {[%clk 0:00:13]}  Rxe8 {[%clk 0:00:19]} 35. Rxe8 {[%clk 0:00:13]}  Qxe8 {[%clk 0:00:20]} 36. Qe5+ {[%clk 0:00:13]}  Qxe5 {[%clk 0:00:12]} 37. dxe5 {[%clk 0:00:13]}  Nc8 {[%clk 0:00:10]} 38. Nf3 {[%clk 0:00:12]}  c5 {[%clk 0:00:09]} 39. Nxg5 {[%clk 0:00:11]}  Nb6 {[%clk 0:00:09]} 40. e6 {[%clk 0:00:11]}  fxe6 {[%clk 0:00:08]} 41. Nxe6+ {[%clk 0:00:11]}  Kf6 {[%clk 0:00:09]} 42. Nxc5 {[%clk 0:00:12]}  Bb1 {[%clk 0:00:10]} 43. a3 {[%clk 0:00:11]}  Nc4 {[%clk 0:00:09]} 44. Bxd5 {[%clk 0:00:11]}  Nxb2 {[%clk 0:00:10]} 45. Nxb7 {[%clk 0:00:10]}  Nd1 {[%clk 0:00:10]} 46. c4 {[%clk 0:00:10]}  Ne3 {[%clk 0:00:11]} 47. Na5 {[%clk 0:00:09]}  Bd3 {[%clk 0:00:10]} 48. Nc6 {[%clk 0:00:09]}  a6 {[%clk 0:00:11]} 49. Na5 {[%clk 0:00:09]}  Ke5 {[%clk 0:00:10]} 50. Kf2 {[%clk 0:00:09]}  Nd1+ {[%clk 0:00:06]} 51. Kf3 {[%clk 0:00:09]}  Nc3 {[%clk 0:00:05]} 52. Nc6+ {[%clk 0:00:09]}  Kf6 {[%clk 0:00:05]} 53. Kf4 {[%clk 0:00:09]}  Bf1 {[%clk 0:00:04]} 54. g5+ {[%clk 0:00:08]}  Kg7 {[%clk 0:00:05]} 55. Kg4 {[%clk 0:00:09]}  Ne2 {[%clk 0:00:03]} 56. Ne5 {[%clk 0:00:09]}  Nd4 {[%clk 0:00:03]} 57. f6+ {[%clk 0:00:09]}  Kh7 {[%clk 0:00:03]} 58. g6+ {[%clk 0:00:09]}  Kh6 {[%clk 0:00:04]} 59. g7 {[%clk 0:00:10]}  Be2+ {[%clk 0:00:04]} 60. Kxh4 {[%clk 0:00:10]}  Nf5# {[%clk 0:00:05]} 0-1


[Site "https://www.chess.com"]

[Event "Titled Tuesday Blitz May 4 2021"]
[White "Tisaj, Domen"]
[Black "Cunjalo, Faris"]
[WhiteFideId "14628708"]
[BlackFideId "14410710"]
[WhiteElo "2243"]
[BlackElo "2234"]
[Result "0-1"]
[Round "05"]
[TimeControl "180+1"]
[Date "2021.05.04"]
[WhiteClock "0:00:02"]
[BlackClock "0:00:22"]

1. d4 {[%clk 0:03:00]}  f5 {[%clk 0:02:59]} 2. Nc3 {[%clk 0:02:58]}  Nf6 {[%clk 0:02:59]} 3. Bg5 {[%clk 0:02:56]}  g6 {[%clk 0:02:54]} 4. Bxf6 {[%clk 0:02:40]}  exf6 {[%clk 0:02:55]} 5. e3 {[%clk 0:02:38]}  d5 {[%clk 0:02:55]} 6. Bd3 {[%clk 0:02:38]}  Be6 {[%clk 0:02:55]} 7. Qf3 {[%clk 0:02:35]}  Nc6 {[%clk 0:02:50]} 8. a3 {[%clk 0:02:32]}  Ne7 {[%clk 0:02:47]} 9. Nge2 {[%clk 0:02:31]}  c6 {[%clk 0:02:45]} 10. h4 {[%clk 0:02:31]}  h5 {[%clk 0:02:45]} 11. Nf4 {[%clk 0:02:30]}  Bf7 {[%clk 0:02:45]} 12. Qe2 {[%clk 0:02:03]}  Bh6 {[%clk 0:02:29]} 13. O-O {[%clk 0:01:59]}  Nc8 {[%clk 0:02:10]} 14. b4 {[%clk 0:01:52]}  Nd6 {[%clk 0:02:08]} 15. b5 {[%clk 0:01:48]}  Qa5 {[%clk 0:01:54]} 16. Qe1 {[%clk 0:01:48]}  Kf8 {[%clk 0:01:27]} 17. bxc6 {[%clk 0:01:42]}  bxc6 {[%clk 0:01:27]} 18. a4 {[%clk 0:01:06]}  Rb8 {[%clk 0:01:24]} 19. Qd2 {[%clk 0:00:58]}  Kg7 {[%clk 0:01:21]} 20. Rfb1 {[%clk 0:00:58]}  Rb6 {[%clk 0:01:04]} 21. Rxb6 {[%clk 0:00:56]}  axb6 {[%clk 0:01:04]} 22. Rb1 {[%clk 0:00:56]}  Rc8 {[%clk 0:00:41]} 23. Qe1 {[%clk 0:00:52]}  Re8 {[%clk 0:00:36]} 24. Nce2 {[%clk 0:00:42]}  Qxe1+ {[%clk 0:00:36]} 25. Rxe1 {[%clk 0:00:43]}  c5 {[%clk 0:00:34]} 26. c3 {[%clk 0:00:36]}  c4 {[%clk 0:00:26]} 27. Bc2 {[%clk 0:00:35]}  Ra8 {[%clk 0:00:26]} 28. Rb1 {[%clk 0:00:33]}  Ra6 {[%clk 0:00:27]} 29. Nc1 {[%clk 0:00:23]}  Bxf4 {[%clk 0:00:22]} 30. exf4 {[%clk 0:00:22]}  Be8 {[%clk 0:00:23]} 31. Na2 {[%clk 0:00:04]}  Bxa4 {[%clk 0:00:22]} 32. Bxa4 {[%clk 0:00:04]}  Rxa4 {[%clk 0:00:23]} 33. Rxb6 {[%clk 0:00:04]}  Ne4 {[%clk 0:00:21]} 34. Rb7+ {[%clk 0:00:02]}  Kh6 {[%clk 0:00:21]} 35. Rb2 {[%clk 0:00:01]}  Ra3 {[%clk 0:00:21]} 36. Rc2 {[%clk 0:00:02]}  g5 {[%clk 0:00:21]} 37. f3 {[%clk 0:00:02]}  Ng3 {[%clk 0:00:20]} 38. hxg5+ {[%clk 0:00:02]}  fxg5 {[%clk 0:00:21]} 39. fxg5+ {[%clk 0:00:03]}  Kxg5 {[%clk 0:00:22]} 40. Nb4 {[%clk 0:00:03]}  Ra1+ {[%clk 0:00:22]} 41. Kf2 {[%clk 0:00:03]}  f4 {[%clk 0:00:22]} 42. Re2 {[%clk 0:00:02]}  Rf1# {[%clk 0:00:22]} 0-1


[Site "https://www.chess.com"]

[Event "Titled Tuesday Blitz May 4 2021"]
[White "Titichoca Daza, Daniel"]
[Black "Erden, Kadir"]
[WhiteFideId "3309550"]
[BlackFideId "6305776"]
[WhiteElo "1910"]
[BlackElo "2218"]
[Result "1-0"]
[Round "05"]
[TimeControl "180+1"]
[Date "2021.05.04"]
[WhiteClock "0:00:54"]
[BlackClock "0:00:09"]

1. e4 {[%clk 0:03:00]}  c6 {[%clk 0:02:58]} 2. Nf3 {[%clk 0:02:59]}  d5 {[%clk 0:02:59]} 3. Nc3 {[%clk 0:03:00]}  Nf6 {[%clk 0:02:58]} 4. e5 {[%clk 0:02:53]}  Ne4 {[%clk 0:02:53]} 5. Ne2 {[%clk 0:02:48]}  Qb6 {[%clk 0:02:52]} 6. d4 {[%clk 0:02:41]}  e6 {[%clk 0:02:50]} 7. Ng3 {[%clk 0:02:37]}  c5 {[%clk 0:02:50]} 8. Bd3 {[%clk 0:02:10]}  Nc6 {[%clk 0:02:44]} 9. Nxe4 {[%clk 0:01:57]}  dxe4 {[%clk 0:02:42]} 10. Bxe4 {[%clk 0:01:58]}  cxd4 {[%clk 0:02:42]} 11. O-O {[%clk 0:01:56]}  Bd7 {[%clk 0:02:42]} 12. c3 {[%clk 0:01:49]}  dxc3 {[%clk 0:02:37]} 13. bxc3 {[%clk 0:01:46]}  Qc7 {[%clk 0:02:37]} 14. Bf4 {[%clk 0:01:26]}  Be7 {[%clk 0:00:16]} 15. Rb1 {[%clk 0:01:23]}  h6 {[%clk 0:00:16]} 16. Re1 {[%clk 0:01:17]}  Na5 {[%clk 0:00:16]} 17. Nd4 {[%clk 0:01:05]}  O-O {[%clk 0:00:13]} 18. Qh5 {[%clk 0:00:56]}  f5 {[%clk 0:00:10]} 19. exf6 {[%clk 0:00:55]}  Rxf6 {[%clk 0:00:09]} 20. Bxc7 {[%clk 0:00:54]} 1-0


[Site "https://www.chess.com"]